lending/lending_fUSD_20240807
["ID","MTS","AMOUNT","RATE_DAILY","PERIOD"]
[334412563,1723059040762,-500.0,0.00010999,2]
[334412564,1723059040771,-500.0,0.00010999,2]
[334412565,1723059040780,-500.0,0.00010999,2]
[334412566,1723059040790,-500.0,0.00010999,2]
[334412567,1723059040799,-500.0,0.00010999,2]
[334412568,1723059040808,-500.0,0.00010999,2]
[334412569,1723059040817,-500.0,0.00010999,2]
[334412570,1723059040826,-500.0,0.00010999,2]
[334412571,1723059040836,-500.0,0.00010999,2]
[334412572,1723059040846,-500.0,0.00010999,2]
[334412573,1723059040856,-500.0,0.00010999,2]
[334412574,1723059040866,-500.0,0.00010999,2]
[334412575,1723059040875,-500.0,0.00010999,2]
[334412576,1723059040884,-500.0,0.00010999,2]
[334412577,1723059040894,-500.0,0.00010999,2]
[334412578,1723059040903,-500.0,0.00010999,2]
[334412579,1723059040913,-500.0,0.00010999,2]
[334412580,1723059040923,-500.0,0.00010999,2]
[334412582,1723059040933,-500.0,0.00010999,2]
[334412584,1723059040943,-500.0,0.00010999,2]
[334412586,1723059040952,-500.0,0.00010999,2]
[334412587,1723059040962,-500.0,0.00010999,2]
[334412589,1723059040973,-500.0,0.00010999,2]
[334412591,1723059040982,-500.0,0.00010999,2]
[334412593,1723059040991,-500.0,0.00010999,2]
[334412594,1723059041002,-500.0,0.00010999,2]
[334412595,1723059041012,-500.0,0.00010999,2]
[334412596,1723059041022,-500.0,0.00010999,2]
[334412597,1723059041031,-500.0,0.00010999,2]
[334412598,1723059041040,-500.0,0.00010999,2]
[334412599,1723059041050,-500.0,0.00010999,2]
[334412600,1723059041060,-500.0,0.00010999,2]
[334412601,1723059041069,-500.0,0.00010999,2]
[334412602,1723059041078,-500.0,0.00010999,2]
[334412603,1723059041088,-500.0,0.00010999,2]
[334412604,1723059041098,-500.0,0.00010999,2]
[334412605,1723059041107,-418.91974065,0.00010999,2]
[334412606,1723059041117,-500.0,0.00010999,2]
[334412607,1723059041127,-500.0,0.00010999,2]
[334412608,1723059041136,-514.36618174,0.00010999,2]
[334412609,1723059041146,-500.0,0.00010999,2]
[334412610,1723059041155,-500.0,0.00010999,2]
[334412611,1723059041165,-500.0,0.00010999,2]
[334412612,1723059041175,-500.0,0.00010999,2]
[334412613,1723059041184,-500.0,0.00010999,2]
[334412614,1723059041194,-499.99999999,0.00010999,2]
[334412615,1723059041204,-500.0,0.00010999,2]
[334412616,1723059041213,-500.0,0.00010999,2]
[334412617,1723059041223,-500.0,0.00010999,2]
[334412618,1723059041232,-482.07238947,0.00010999,2]
[334412619,1723059041242,-64520.74983431,0.00011,2]
[334412620,1723059041251,-426374.85018468,0.00011,2]
[334412621,1723059041263,-2317.72409728,0.00011,2]
[334412622,1723059041272,-32065.82320974,0.00011,2]
[334412640,1723059043413,-5503.0,0.00011,2]
[334412642,1723059043424,-5130.63602142,0.00011,2]
[334412645,1723059043476,-2488.75640074,0.00011,2]
[334412646,1723059043488,-1067.489528,0.00011,2]
[334412647,1723059043533,-72472.8766508,0.00011,2]
[334412699,1723059046553,-1048.0,0.00011,2]
[334412701,1723059046564,-3629.87625,0.00011,2]
[334412702,1723059046576,-26965.36510827,0.00011,2]
[334412703,1723059046587,-5499.0156,0.00011,2]
[334412704,1723059046727,-349.69150764,0.00011,2]
[334412705,1723059046739,-3430.17014427,0.00011,2]
[334412707,1723059343746,-343.2883076,0.000109,2]
[334412708,1723059343772,-246.504769,0.000109,2]
[334412709,1723059343801,-189.55387216,0.000109,2]
[334412710,1723059343827,-157.63662071,0.000109,2]
[334412711,1723059343853,-2940.0138114,0.000109,2]
[334412712,1723059343880,-79202.00261913,0.00010997,2]
[334412713,1723059656617,-150.0,0.00010899,2]
[334412714,1723059656644,-50.0,0.00010899,2]
[334412715,1723059658274,-200.0,0.00010899,2]
[334412727,1723060231429,-150.0,9.888e-05,2]
[334412729,1723060231440,-156.1607406,0.00010799,2]
[334412731,1723060231449,-376.87482189,0.00010899,2]
[334412733,1723060231461,-35.89147837,0.00010899,2]
[334412736,1723060231470,-553.01917392,0.00010899,2]
[334412737,1723060231480,-181.68786506,0.00010899,2]
[334412740,1723060231490,-94.86177082,0.00010899,2]
[334412742,1723060231502,-55.13822918,0.00010899,2]
[334412744,1723060231511,-944.86177082,0.000109,2]
[334412745,1723060231524,-600.0,0.000109,2]
[334412746,1723060231536,-571.61940899,0.000109,2]
[334412747,1723060231550,-207.72991612,0.000109,2]
[334412748,1723060231563,-156.1607406,0.000109,2]
[334412749,1723060231572,-343.2883076,0.000109,2]
[334412750,1723060231581,-167.14666384,0.000109,2]
[334412751,1723060231590,-1192.39455641,0.000109,2]
[334412752,1723060231602,-517.32906284,0.000109,2]
[334412753,1723060231611,-152.61218939,0.000109,2]
[334412754,1723060231626,-49.17390022,0.000109,2]
[334412755,1723060231635,-1960.22384705,0.00010997,2]
[334412756,1723060231655,-575.05,0.00010997,2]
[334412757,1723060231666,-307.8334,0.00010997,2]
[334412759,1723060231677,-3484.73800879,0.00010997,2]
[334412761,1723060231705,-516.88983899,0.00010997,2]
[334412762,1723060231718,-2790.63283039,0.00010997,2]
[334412782,1723060237479,-319.8,0.000109,2]
[334412783,1723060237493,-9771.94916394,0.000109,2]
[334412784,1723060237503,-157.63662071,0.000109,2]
[334412785,1723060237513,-6492.20627695,0.00010997,2]
[334412786,1723060237522,-500.0,0.00010999,2]
[334412787,1723060237532,-500.0,0.00010999,2]
[334412788,1723060237541,-500.0,0.00010999,2]
[334412789,1723060237550,-500.0,0.00010999,2]
[334412790,1723060237560,-166.00762725,0.00010999,2]
[334412791,1723060237570,-500.0,0.00010999,2]
[334412792,1723060237579,-500.0,0.00010999,2]
[334412793,1723060237589,-500.0,0.00010999,2]
[334412794,1723060237599,-500.0,0.00010999,2]
[334412795,1723060237608,-500.0,0.00010999,2]
[334412796,1723060237617,-500.0,0.00010999,2]
[334412797,1723060237628,-500.0,0.00010999,2]
[334412798,1723060237638,-500.0,0.00010999,2]
[334412799,1723060237647,-500.0,0.00010999,2]
[334412800,1723060237657,-180.74415823,0.00010999,2]
[334412801,1723060237668,-500.0,0.00010999,2]
[334412802,1723060237677,-500.0,0.00010999,2]
[334412803,1723060237687,-500.0,0.00010999,2]
[334412804,1723060237696,-500.0,0.00010999,2]
[334412805,1723060237705,-500.0,0.00010999,2]
[334412806,1723060237714,-500.0,0.00010999,2]
[334412807,1723060237723,-186.83781408,0.00010999,2]
[334412808,1723060237733,-500.0,0.00010999,2]
[334412809,1723060237743,-500.0,0.00010999,2]
[334412810,1723060237752,-500.0,0.00010999,2]
[334412811,1723060237761,-500.0,0.00010999,2]
[334412812,1723060237770,-500.0,0.00010999,2]
[334412813,1723060237780,-500.0,0.00010999,2]
[334412814,1723060237789,-500.0,0.00010999,2]
[334412815,1723060237799,-500.0,0.00010999,2]
[334412816,1723060237808,-500.0,0.00010999,2]
[334412817,1723060237818,-500.0,0.00010999,2]
[334412818,1723060237827,-500.0,0.00010999,2]
[334412819,1723060237837,-500.0,0.00010999,2]
[334412820,1723060237846,-500.0,0.00010999,2]
[334412821,1723060237856,-429.02768169,0.00010999,2]
[334412822,1723060237865,-500.0,0.00010999,2]
[334412823,1723060237875,-500.0,0.00010999,2]
[334412824,1723060237884,-581.54032675,0.00010999,2]
[334412825,1723060237894,-500.0,0.00010999,2]
[334412826,1723060237904,-500.0,0.00010999,2]
[334412827,1723060237914,-500.0,0.00010999,2]
[334412828,1723060237923,-18488.0503304,0.00011,2]
[334412829,1723060237971,-7991.34343518,0.00011,2]
[334412830,1723060237983,-30780.98115158,0.00011,2]
[334412831,1723060237993,-9407.7260357,0.00011,2]
[334412832,1723060238008,-732.77034899,0.00011,2]
[334412833,1723060238019,-955.5093802,0.00011,2]
[334412834,1723060238030,-8920.2602955,0.00011,2]
[334412835,1723060238041,-668.26362144,0.00011,2]
[334412836,1723060238052,-311.21120683,0.00011,2]
[334412837,1723060238071,-1849.01762945,0.00011,2]
[334412838,1723060238086,-4070.08297907,0.00011,2]
[334412839,1723060238097,-795.0000001,0.00011,2]
[334412840,1723060238109,-5649.97944359,0.00011,2]
[334412841,1723060238120,-58096.69761641,0.00011,2]
[334412842,1723060238131,-468.50164004,0.00011,2]
[334412845,1723060241585,-607.5499219,0.00011,2]
[334412846,1723060241647,-500.54994624,0.00011,2]
[334412847,1723060241710,-3260277.15086524,0.00011,2]
[334412848,1723060241722,-200.0,0.00011,2]
[334412849,1723060241732,-174.86067,0.00011,2]
[334412850,1723060241746,-200.0,0.00011,2]
[334412851,1723060241755,-164.68926633,0.00011,2]
[334412852,1723060241765,-200.0,0.0001111,2]
[334412853,1723060241774,-499.5,0.00011182,2]
[334412854,1723060241785,-200.0,0.00011221,2]
[334412855,1723060241794,-3186.9885,0.00011321,2]
[334412856,1723060241803,-10527.99021344,0.00011324,2]
[334412857,1723060241813,-200.0,0.00011333,2]
[334412858,1723060241822,-200.0,0.00011447,2]
[334412859,1723060241832,-786.8,0.00011894,2]
[334412860,1723060241841,-310.15,0.00012,2]
[334412861,1723060241851,-310.15,0.00012,2]
[334412862,1723060241860,-310.15,0.00012,2]
[334412863,1723060241870,-310.15,0.00012,2]
[334412864,1723060241879,-310.15,0.00012,2]
[334412865,1723060241888,-310.15,0.00012,2]
[334412866,1723060241897,-310.15,0.00012,2]
[334412867,1723060241907,-310.15,0.00012,2]
[334412868,1723060241916,-310.15,0.00012,2]
[334412869,1723060241926,-310.15,0.00012,2]
[334412870,1723060241935,-310.15,0.00012,2]
[334412871,1723060241945,-310.15,0.00012,2]
[334412872,1723060241955,-310.15,0.00012,2]
[334412874,1723060241964,-310.15,0.00012,2]
[334412875,1723060241974,-310.15,0.00012,2]
[334412877,1723060241983,-310.15,0.00012,2]
[334412879,1723060241997,-310.15,0.00012,2]
[334412881,1723060242007,-310.15,0.00012,2]
[334412883,1723060242017,-310.15,0.00012,2]
[334412884,1723060242026,-310.15,0.00012,2]
[334412886,1723060242036,-310.15,0.00012,2]
[334412888,1723060242046,-310.15,0.00012,2]
[334412890,1723060242055,-310.15,0.00012,2]
[334412892,1723060242065,-310.15,0.00012,2]
[334412893,1723060242074,-310.15,0.00012,2]
[334412895,1723060242084,-310.15,0.00012,2]
[334412897,1723060242093,-310.15,0.00012,2]
[334412899,1723060242103,-310.15,0.00012,2]
[334412901,1723060242112,-310.15,0.00012,2]
[334412903,1723060242122,-310.15,0.00012,2]
[334412905,1723060242131,-215.48,0.00012298,2]
[334412912,1723060242173,-200.0,0.0001235,2]
[334412914,1723060242182,-23900.0,0.00012424,2]
[334412916,1723060242192,-826.53,0.00012461,2]
[334412917,1723060242201,-257.24,0.00012517,2]
[334412919,1723060242211,-250.0,0.00012534,2]
[334412921,1723060242220,-1000.0,0.00012539,2]
[334412923,1723060242229,-176.7,0.00012539,2]
[334412925,1723060242239,-150.99,0.00012574,2]
[334412927,1723060242249,-499.99,0.00012574,2]
[334412928,1723060242258,-150.0,0.00012664,2]
[334412930,1723060242268,-152.98,0.0001267,2]
[334412933,1723060242277,-152.98,0.00012674,2]
[334412936,1723060242286,-152.98,0.00012677,2]
[334412938,1723060242296,-152.98,0.0001268,2]
[334412939,1723060242305,-152.98,0.00012684,2]
[334412940,1723060242314,-152.98,0.00012687,2]
[334412941,1723060242322,-367.64405093,0.0001269,2]
[334412942,1723060242331,-152.98,0.0001269,2]
[334412944,1723060242341,-152.98,0.00012694,2]
[334412945,1723060242355,-156.81644864,0.00012696,2]
[334412947,1723060242364,-152.98,0.00012697,2]
[334412949,1723060242373,-152.98,0.000127,2]
[334412950,1723060242382,-152.98,0.00012704,2]
[334412952,1723060242392,-152.98,0.00012707,2]
[334412955,1723060242402,-152.98,0.0001271,2]
[334412957,1723060242411,-152.98,0.00012714,2]
[334412960,1723060242420,-152.98,0.00012717,2]
[334412962,1723060242432,-152.98,0.00012721,2]
[334412965,1723060242442,-152.98,0.00012724,2]
[334412968,1723060242452,-152.98,0.00012727,2]
[334412970,1723060242461,-152.98,0.00012731,2]
[334412972,1723060242471,-152.98,0.00012734,2]
[334412974,1723060242479,-961.9744854,0.00012826,2]
[334412976,1723060242488,-415.02704443,0.00012826,2]
[334412979,1723060242508,-551.56599381,0.00012883,2]
[334412982,1723060242518,-310.0,0.00012928,2]
[334412985,1723060242527,-162.89676018,0.00012928,2]
[334412988,1723060242536,-550.0,0.00013,2]
[334412991,1723060242545,-250.0,0.0001304,2]
[334412992,1723060242554,-234.16960797,0.00013133,2]
[334412997,1723060242564,-167.30011434,0.00013133,2]
[334413000,1723060242574,-300.0,0.00013165,2]
[334413001,1723060242583,-300.0,0.00013199,2]
[334413004,1723060242592,-3402.25151975,0.00013211,2]
[334413007,1723060242602,-5483.68794989,0.00013211,2]
[334413009,1723060242611,-299.75691573,0.00013333,2]
[334413011,1723060242621,-499.5,0.00013446,2]
[334413013,1723060242630,-21450.34021177,0.0001367,2]
[334413015,1723060242639,-2751.0,0.00013699,2]
[334413016,1723060242649,-200.0,0.00013699,2]
[334413017,1723060242658,-156.68,0.00013699,2]
[334413018,1723060242668,-163101.770818,0.000138,3]
[334413019,1723060242677,-12126.90293789,0.00013879,2]
[334413020,1723060242687,-317301.520701,0.000139,3]
[334413021,1723060242696,-431.97,0.00013973,2]
[334413022,1723060242705,-359.45,0.00013973,2]
[334413023,1723060242715,-257.24,0.00014082,2]
[334413024,1723060242724,-1000.0,0.00014106,2]
[334413025,1723060242733,-300.96902105,0.000144,2]
[334413026,1723060242746,-257.24,0.00015647,2]
[334413027,1723060242756,-1000.0,0.00015673,2]
[334413028,1723060242766,-499.5,0.0001571,2]
[334413029,1723060242775,-174.86067,0.00016,2]
[334413030,1723060242784,-1000.0,0.00016282,2]
[334413031,1723060242793,-5202.52468005,0.00016424,2]
[334413032,1723060242802,-5000.0,0.00016441,2]
[334413033,1723060242811,-1763.4763965,0.000165,2]
[334413034,1723060242821,-1000.0,0.00016571,2]
[334413035,1723060242833,-1855.43,0.000166,2]
[334413036,1723060242842,-1000.0,0.00016761,2]
[334413037,1723060242852,-1715.894,0.00016822,2]
[334413038,1723060242861,-1344.0,0.00016822,2]
[334413039,1723060242871,-304.197,0.00016822,2]
[334413040,1723060242880,-445.973,0.00016822,2]
[334413041,1723060242889,-550.0,0.00016822,2]
[334413042,1723060242899,-1893.0,0.00016822,2]
[334413043,1723060242908,-150.0,0.00016822,2]
[334413044,1723060242917,-150.0,0.00016822,2]
[334413045,1723060242926,-3288.0,0.00016822,2]
[334413046,1723060242936,-1122.0,0.00016822,2]
[334413047,1723060242946,-738.205,0.00016822,2]
[334413048,1723060242955,-289.0,0.00016822,2]
[334413049,1723060242964,-5837.0,0.00016822,2]
[334413050,1723060242973,-1075.0,0.00016822,2]
[334413051,1723060242983,-1000.0,0.00016965,2]
[334413052,1723060242994,-1000.0,0.00016965,2]
[334413053,1723060243004,-3977.2935375,0.00016999,2]
[334413054,1723060243013,-2834.94827879,0.00017004,2]
[334413055,1723060243023,-3472.49405737,0.00017004,2]
[334413057,1723060243032,-2834.94827879,0.00017004,2]
[334413058,1723060243041,-600.50572099,0.00017004,2]
[334413059,1723060243051,-187.61,0.0001713,2]
[334413060,1723060243060,-257.24,0.00017211,2]
[334413061,1723060243069,-1000.0,0.00017241,2]
[334413062,1723060243078,-2144.62791432,0.0001738,2]
[334413064,1723060243088,-439.89968088,0.00017399,2]
[334413065,1723060243097,-309.16579736,0.00017399,2]
[334413066,1723060243106,-2207.56195178,0.00017399,2]
[334413067,1723060243116,-10000.0,0.00017408,2]
[334413068,1723060243126,-3080.259936,0.00017533,2]
[334413069,1723060243135,-3625.65407081,0.00017533,2]
[334413070,1723060243145,-1405.19425176,0.00017636,2]
[334413071,1723060243154,-167.14666382,0.00017898,2]
[334413072,1723060243163,-1709.72361923,0.00017898,2]
[334413073,1723060243172,-10091.74916393,0.00017898,2]
[334413074,1723060243181,-499.5,0.00017974,2]
[334413075,1723060243190,-676.06380019,0.00018,2]
[334413076,1723060243200,-308.13974125,0.00018,2]
[334413077,1723060243210,-454.39810402,0.00018081,2]
[334413078,1723060243220,-719.68870544,0.00018176,2]
[334413079,1723060243231,-1176.15950994,0.00018499,2]
[334413080,1723060243243,-1138.37465577,0.00018499,2]
[334413081,1723060243254,-628.3730026,0.00018499,2]
[334413082,1723060243263,-624.10934651,0.00018529,2]
[334413083,1723060243273,-921.03072838,0.00018547,2]
[334413084,1723060243282,-193.02881203,0.00018599,2]
[334413085,1723060243292,-722.96983282,0.00018599,2]
[334413086,1723060243302,-1738.76964944,0.00018599,2]
[334413087,1723060243311,-211.62746688,0.00018599,2]
[334413088,1723060243321,-283.44748515,0.00018599,2]
[334413089,1723060243330,-250.23523546,0.00018599,2]
[334413090,1723060243340,-203.375733,0.00018599,2]
[334413091,1723060243353,-2442.6021425,0.000186,2]
[334413092,1723060243363,-257.24,0.00018776,2]
[334413093,1723060243373,-1000.0,0.00018808,2]
[334413094,1723060243383,-30662.90777737,0.0001888,2]
[334413095,1723060243392,-480.98966334,0.00018898,2]
[334413096,1723060243402,-259.98867043,0.00018898,2]
[334413097,1723060243412,-173.40082567,0.00018898,2]
[334413098,1723060243422,-155.0,0.00018898,2]
[334413099,1723060243433,-155.0,0.00018898,2]
[334413100,1723060243444,-625.943723,0.00018898,2]
[334413101,1723060243453,-155.0,0.00018898,2]
[334413102,1723060243463,-151.21,0.000189,2]
[334413103,1723060243475,-151.21,0.000189,2]
[334413104,1723060243485,-151.21,0.000189,2]
[334413105,1723060243503,-151.21,0.000189,2]
[334413106,1723060243512,-151.21,0.000189,2]
[334413107,1723060243522,-151.21,0.000189,2]
[334413108,1723060243531,-151.21,0.000189,2]
[334413109,1723060243541,-151.21,0.000189,2]
[334413110,1723060243550,-151.21,0.000189,2]
[334413111,1723060243560,-151.21,0.000189,2]
[334413112,1723060243569,-151.21,0.000189,2]
[334413113,1723060243578,-151.21,0.000189,2]
[334413114,1723060243588,-151.21,0.000189,2]
[334413115,1723060243597,-151.21,0.000189,2]
[334413116,1723060243607,-151.21,0.000189,2]
[334413117,1723060243616,-151.21,0.000189,2]
[334413118,1723060243626,-151.21,0.000189,2]
[334413119,1723060243636,-151.21,0.000189,2]
[334413120,1723060243646,-151.21,0.000189,2]
[334413121,1723060243655,-151.21,0.000189,2]
[334413122,1723060243666,-151.21,0.000189,2]
[334413123,1723060243676,-151.21,0.000189,2]
[334413124,1723060243687,-151.21,0.000189,2]
[334413125,1723060243698,-151.21,0.000189,2]
[334413126,1723060243707,-151.21,0.000189,2]
[334413127,1723060243718,-151.21,0.000189,2]
[334413128,1723060243729,-151.21,0.000189,2]
[334413129,1723060243738,-151.21,0.000189,2]
[334413130,1723060243757,-151.21,0.000189,2]
[334413131,1723060243769,-151.21,0.000189,2]
[334413132,1723060243780,-151.21,0.000189,2]
[334413133,1723060243790,-151.21,0.000189,2]
[334413134,1723060243800,-151.21,0.000189,2]
[334413135,1723060243811,-151.21,0.000189,2]
[334413136,1723060243820,-151.21,0.000189,2]
[334413137,1723060243833,-151.21,0.000189,2]
[334413138,1723060243842,-151.21,0.000189,2]
[334413139,1723060243854,-151.21,0.000189,2]
[334413140,1723060243864,-151.21,0.000189,2]
[334413141,1723060243874,-151.21,0.000189,2]
[334413142,1723060243883,-151.21,0.000189,2]
[334413143,1723060243897,-151.21,0.000189,2]
[334413144,1723060243906,-151.21,0.000189,2]
[334413145,1723060243916,-200.0,0.0001892,2]
[334413146,1723060243926,-500.0,0.00018925,2]
[334413147,1723060243936,-155.0,0.00018999,2]
[334413148,1723060243946,-155.0,0.00018999,2]
[334413149,1723060243955,-155.0,0.00018999,2]
[334413150,1723060243964,-531.93797373,0.00018999,2]
[334413151,1723060243974,-155.0,0.00018999,2]
[334413152,1723060243983,-159.27154667,0.00018999,2]
[334413153,1723060243995,-210.93263361,0.00018999,2]
[334413154,1723060244005,-155.0,0.00018999,2]
[334413155,1723060244014,-313.53274802,0.00018999,2]
[334413156,1723060244024,-165.40738318,0.00018999,2]
[334413157,1723060244033,-155.0,0.00018999,2]
[334413158,1723060244043,-258.33013872,0.00018999,2]
[334413159,1723060244052,-155.0,0.00018999,2]
[334413160,1723060244060,-155.0,0.00018999,2]
[334413161,1723060244070,-568.59804658,0.00019,2]
[334413162,1723060244080,-519.81232661,0.00019045,2]
[334413163,1723060244089,-155.0,0.00019045,2]
[334413164,1723060244099,-202.77094298,0.00019045,2]
[334413165,1723060244108,-218.77944705,0.00019045,2]
[334413166,1723060244118,-155.0,0.00019045,2]
[334413167,1723060244127,-155.0,0.00019045,2]
[334413168,1723060244137,-264.3297815,0.00019045,2]
[334413169,1723060244146,-282.04147473,0.00019045,2]
[334413170,1723060244155,-328.03918771,0.00019177,2]
[334413171,1723060244165,-155.0,0.00019177,2]
[334413172,1723060244175,-220.66511997,0.00019177,2]
[334413173,1723060244185,-164.28139414,0.00019177,2]
[334413174,1723060244194,-330.00668886,0.00019177,2]
[334413175,1723060244204,-210.91712052,0.00019177,2]
[334413176,1723060244214,-155.0,0.0001924,2]
[334413177,1723060244224,-379.82654153,0.0001924,2]
[334413178,1723060244234,-155.0,0.0001924,2]
[334413179,1723060244245,-155.21039969,0.0001924,2]
[334413180,1723060244256,-359.17322688,0.0001924,2]
[334413181,1723060244265,-257.3308684,0.00019289,2]
[334413182,1723060244275,-297.369235,0.00019319,2]
[334413183,1723060244284,-365.50885499,0.00019387,2]
[334413184,1723060244293,-294.24898824,0.00019387,2]
[334413185,1723060244302,-1855.43,0.000194,2]
[334413186,1723060244311,-189.703,0.00019822,2]
[334413187,1723060244321,-1207.0,0.00019865,2]
[334413188,1723060244331,-202.87114277,0.00019899,2]
[334413189,1723060244341,-155.0,0.00019899,2]
[334413190,1723060244353,-626.08260857,0.0002,2]
[334413191,1723060244363,-17830.35521724,0.0002,2]
[334413192,1723060244373,-6291.69894213,0.0002,2]
[334413193,1723060244384,-551.45882037,0.0002,2]
[334413194,1723060244394,-155.0,0.0002,2]
[334413195,1723060244403,-1283.81002744,0.0002,2]
[334413196,1723060244413,-364.03356845,0.00020109,2]
[334413197,1723060244422,-649.45918791,0.00020109,2]
[334413198,1723060244434,-653.24000473,0.0002012,2]
[334413199,1723060244444,-2024.14563285,0.00020222,2]
[334413200,1723060244453,-499.5,0.00020238,2]
[334413201,1723060244462,-594.69883351,0.0002038,2]
[334413202,1723060244472,-431.97,0.00020447,2]
[334413203,1723060244481,-359.45,0.00020447,2]
[334413204,1723060244493,-500.0,0.00020688,2]
[334413205,1723060244503,-500.0,0.00020697,2]
[334413206,1723060244512,-500.0,0.00020705,2]
[334413207,1723060244522,-500.0,0.00020714,2]
[334413208,1723060244532,-500.0,0.00020723,2]
[334413209,1723060244541,-500.0,0.00020732,2]
[334413210,1723060244551,-500.0,0.00020741,2]
[334413211,1723060244560,-500.0,0.00020749,2]
[334413212,1723060244570,-500.0,0.00020758,2]
[334413213,1723060244580,-187.61,0.00020765,2]
[334413214,1723060244590,-500.0,0.00020767,2]
[334413215,1723060244599,-500.0,0.00020776,2]
[334413216,1723060244608,-500.0,0.00020785,2]
[334413217,1723060244619,-500.0,0.00020793,2]
[334413218,1723060244628,-500.0,0.00020802,2]
[334413219,1723060244638,-500.0,0.00020811,2]
[334413220,1723060244648,-500.0,0.0002082,2]
[334413221,1723060244658,-500.0,0.00020829,2]
[334413222,1723060244670,-500.0,0.00020837,2]
[334413223,1723060244679,-500.0,0.00020846,2]
[334413224,1723060244689,-500.0,0.00020855,2]
[334413225,1723060244699,-500.0,0.00020864,2]
[334413226,1723060244708,-500.0,0.00020873,2]
[334413227,1723060244717,-500.0,0.00020881,2]
[334413228,1723060244727,-500.0,0.0002089,2]
[334413229,1723060244737,-500.0,0.00020899,2]
[334413230,1723060244749,-225.65001596,0.00021,2]
[334413231,1723060244759,-174.86068,0.00021,2]
[334413232,1723060244769,-151.21,0.0002149,2]
[334413233,1723060244779,-6734.0,0.000215,2]
[334413234,1723060244788,-1855.43,0.000215,2]
[334413235,1723060244798,-1360.0,0.000215,2]
[334413236,1723060244807,-152.0,0.00021544,3]
[334413237,1723060244818,-182.83,0.00021589,30]
[334413238,1723060244827,-1000.0,0.000217,2]
[334413239,1723060244837,-2500.0,0.000219,2]
[334413240,1723060244847,-2000.0,0.000219,2]
[334413241,1723060244856,-384.25,0.00021918,2]
[334413242,1723060244866,-790.7,0.00021918,2]
[334413243,1723060244876,-150.0,0.00021918,2]
[334413244,1723060244885,-150.0,0.00021918,2]
[334413245,1723060244895,-175.0,0.00022,2]
[334413246,1723060244904,-167.13,0.00022055,2]
[334413247,1723060244914,-1000.0,0.000223,2]
[334413248,1723060244924,-226.0,0.000223,2]
[334413249,1723060244933,-357.0,0.000223,2]
[334413250,1723060244943,-151.0,0.00022433,2]
[334413251,1723060244952,-151.0,0.00022441,2]
[334413252,1723060244962,-151.0,0.00022449,2]
[334413253,1723060244971,-151.0,0.00022457,2]
[334413254,1723060244981,-151.0,0.00022465,2]
[334413255,1723060244990,-1000.0,0.00022466,2]
[334413256,1723060245002,-151.0,0.00022473,2]
[334413257,1723060245012,-151.0,0.00022481,2]
[334413258,1723060245022,-151.0,0.00022489,2]
[334413259,1723060245031,-150.0,0.00022495,2]
[334413260,1723060245041,-151.0,0.00022497,2]
[334413261,1723060245050,-150.0,0.000225,4]
[334413262,1723060245060,-499.5,0.00022501,2]